fUST/lending_fUST_20240528
["ID","MTS","AMOUNT","RATE_DAILY","PERIOD"]
[328095811,1716851354097,-150.0,0.000189,2]
[328095812,1716851354120,-19705.71388605,0.00019666,2]
[328095813,1716851354141,-236.59285367,0.00019999,2]
[328095814,1716851354162,-156.8699674,0.0002,2]
[328095815,1716851354182,-227.60607916,0.00020043,2]
[328095866,1716851432678,-156.8699674,0.00020226,2]
[328095867,1716851432687,-315.6011672,0.00020227,2]
[328095869,1716851432696,-160.0,0.00020228,2]
[328095871,1716851432705,-160.0,0.00020228,2]
[328095872,1716851432714,-4228.46577223,0.00020619,2]
[328095874,1716851432723,-239.4122,0.00020808,2]
[328095876,1716851432733,-172.55506351,0.0002081,2]
[328095878,1716851432742,-282.0,0.000209,2]
[328095880,1716851432751,-481.63,0.000209,3]
[328095882,1716851432760,-240.82,0.000209,3]
[328095884,1716851432769,-722.47,0.000209,3]
[328095885,1716851432778,-151.0,0.00020909,2]
[328095886,1716851432787,-151.0,0.00020909,2]
[328095887,1716851432796,-482.19367,0.00020909,2]
[328095888,1716851432805,-151.0,0.00020909,2]
[328095889,1716851432815,-482.19367,0.00020909,2]
[328095890,1716851432824,-151.0,0.00020909,2]
[328095891,1716851432833,-482.19367,0.00020909,2]
[328095892,1716851432842,-187.859376,0.00020909,2]
[328095893,1716851432852,-244.56046178,0.00020909,2]
[328095894,1716851432864,-237.63320822,0.00020909,2]
[328095895,1716851432873,-113.69011678,0.00020909,2]
[328095915,1716851438690,-368.50355322,0.00020909,2]
[328095916,1716851438699,-482.19367,0.00020909,2]
[328095917,1716851438708,-482.19367,0.00020909,2]
[328095919,1716851438718,-482.19367,0.00020909,2]
[328095920,1716851438727,-482.19367,0.00020909,2]
[328095922,1716851438737,-482.19367,0.00020909,2]
[328095924,1716851438746,-308.49234763,0.00020909,2]
[328095926,1716851438756,-357.7222544,0.00020909,2]
[328095927,1716851438766,-492.08438752,0.00020909,2]
[328095929,1716851438775,-500.0,0.00020909,2]
[328095931,1716851438785,-500.0,0.00020909,2]
[328095932,1716851438794,-153.81647131,0.00020909,2]
[328095933,1716851438803,-500.0,0.00020909,2]
[328095934,1716851438812,-500.0,0.00020909,2]
[328095936,1716851438823,-500.0,0.00020909,2]
[328095938,1716851438832,-500.0,0.00020909,2]
[328095940,1716851438842,-500.0,0.00020909,2]
[328095942,1716851438852,-500.0,0.00020909,2]
[328095943,1716851438862,-500.0,0.00020909,2]
[328095945,1716851438871,-500.0,0.00020909,2]
[328095946,1716851438880,-500.0,0.00020909,2]
[328095947,1716851438889,-500.0,0.00020909,2]
[328095948,1716851438898,-500.0,0.00020909,2]
[328095949,1716851438908,-500.0,0.00020909,2]
[328095950,1716851438917,-160.64798463,0.00020909,2]
[328095951,1716851438926,-500.0,0.00020909,2]
[328095952,1716851438936,-500.0,0.00020909,2]
[328095953,1716851438945,-500.0,0.00020909,2]
[328095954,1716851438954,-500.0,0.00020909,2]
[328095955,1716851438964,-500.0,0.00020909,2]
[328095956,1716851438973,-500.0,0.00020909,2]
[328095957,1716851438982,-500.0,0.00020909,2]
[328095958,1716851438992,-500.0,0.00020909,2]
[328095959,1716851439001,-500.0,0.00020909,2]
[328095960,1716851439010,-500.0,0.00020909,2]
[328095961,1716851439019,-500.0,0.00020909,2]
[328095962,1716851439028,-500.0,0.00020909,2]
[328095963,1716851439037,-500.0,0.00020909,2]
[328095964,1716851439046,-500.0,0.00020909,2]
[328095965,1716851439055,-500.0,0.00020909,2]
[328095966,1716851439065,-500.0,0.00020909,2]
[328095967,1716851439074,-500.0,0.00020909,2]
[328095968,1716851439083,-500.0,0.00020909,2]
[328095969,1716851439092,-500.0,0.00020909,2]
[328095970,1716851439102,-500.0,0.00020909,2]
[328095971,1716851439111,-500.0,0.00020909,2]
[328095972,1716851439120,-500.0,0.00020909,2]
[328095973,1716851439129,-500.0,0.00020909,2]
[328095974,1716851439138,-500.0,0.00020909,2]
[328095975,1716851439147,-500.0,0.00020909,2]
[328095976,1716851439329,-500.0,0.00020909,2]
[328095977,1716851439339,-500.0,0.00020909,2]
[328095978,1716851439349,-500.0,0.00020909,2]
[328095979,1716851439358,-500.0,0.00020909,2]
[328095980,1716851439367,-500.0,0.00020909,2]
[328095981,1716851439377,-500.0,0.00020909,2]
[328095982,1716851439386,-500.0,0.00020909,2]
[328095983,1716851439395,-500.0,0.00020909,2]
[328095984,1716851439404,-500.0,0.00020909,2]
[328095985,1716851439414,-500.0,0.00020909,2]
[328095986,1716851439424,-500.0,0.00020909,2]
[328095987,1716851439433,-500.0,0.00020909,2]
[328095988,1716851439443,-500.0,0.00020909,2]
[328095989,1716851439454,-500.0,0.00020909,2]
[328095990,1716851439465,-248.19439539,0.00020909,2]
[328095991,1716851439475,-500.0,0.00020909,2]
[328095992,1716851439484,-500.0,0.00020909,2]
[328095993,1716851439495,-500.0,0.00020909,2]
[328095994,1716851439505,-500.0,0.00020909,2]
[328095995,1716851439514,-500.0,0.00020909,2]
[328095996,1716851439524,-500.0,0.00020909,2]
[328095997,1716851439535,-500.0,0.00020909,2]
[328095998,1716851439545,-500.0,0.00020909,2]
[328095999,1716851439556,-500.0,0.00020909,2]
[328096000,1716851439565,-500.0,0.00020909,2]
[328096001,1716851439575,-500.0,0.00020909,2]
[328096002,1716851439585,-500.0,0.00020909,2]
[328096003,1716851439594,-450.0,0.00020909,2]
[328096004,1716851439604,-500.0,0.00020909,2]
[328096005,1716851439614,-999.60015994,0.00020909,2]
[328096006,1716851439624,-260.73045922,0.0002091,2]
[328096007,1716851439635,-215.5033002,0.0002091,2]
[328096008,1716851439645,-195.45005298,0.0002091,2]
[328096009,1716851439654,-202.38161062,0.0002091,2]
[328096010,1716851439663,-211.24404301,0.0002091,2]
[328096011,1716851439673,-151.0,0.0002091,2]
[328096012,1716851439683,-151.0,0.0002091,2]
[328096013,1716851439692,-151.0,0.0002091,2]
[328096014,1716851439702,-151.0,0.0002091,2]
[328096015,1716851439711,-151.0,0.0002091,2]
[328096016,1716851439720,-151.0,0.0002091,2]
[328096017,1716851439730,-151.0,0.0002091,2]
[328096018,1716851439739,-151.0,0.0002091,2]
[328096019,1716851439749,-151.0,0.0002091,2]
[328096020,1716851439759,-151.0,0.0002091,2]
[328096021,1716851439768,-151.0,0.0002091,2]
[328096022,1716851439778,-151.0,0.0002091,2]
[328096023,1716851439788,-151.0,0.0002091,2]
[328096024,1716851439797,-151.0,0.0002091,2]
[328096025,1716851439807,-151.0,0.0002091,2]
[328096026,1716851439816,-151.0,0.0002091,2]
[328096027,1716851439825,-151.0,0.0002091,2]
[328096028,1716851439834,-256.675967,0.0002091,2]
[328096029,1716851439843,-151.0,0.0002091,2]
[328096030,1716851439853,-151.0,0.0002091,2]
[328096031,1716851439863,-151.0,0.0002091,2]
[328096032,1716851439872,-151.0,0.0002091,2]
[328096033,1716851439881,-151.0,0.0002091,2]
[328096034,1716851439891,-968.773292,0.0002091,2]
[328096035,1716851439900,-968.773292,0.0002091,2]
[328096036,1716851439910,-968.773292,0.0002091,2]
[328096037,1716851439920,-968.773292,0.0002091,2]
[328096038,1716851439929,-968.773292,0.0002091,2]
[328096039,1716851439939,-968.773292,0.0002091,2]
[328096040,1716851439948,-968.773292,0.0002091,2]
[328096041,1716851439958,-968.773292,0.0002091,2]
[328096042,1716851439967,-968.773292,0.0002091,2]
[328096043,1716851439977,-968.773292,0.0002091,2]
[328096044,1716851439988,-968.773292,0.0002091,2]
[328096045,1716851439997,-968.773292,0.0002091,2]
[328096046,1716851440007,-968.773292,0.0002091,2]
[328096047,1716851440016,-968.773292,0.0002091,2]
[328096048,1716851440025,-968.773292,0.0002091,2]
[328096049,1716851440035,-968.773292,0.0002091,2]
[328096050,1716851440045,-968.773292,0.0002091,2]
[328096051,1716851440055,-968.773292,0.0002091,2]
[328096052,1716851440065,-373.384991,0.0002091,2]
[328096053,1716851440074,-373.384991,0.0002091,2]
[328096054,1716851440084,-373.384991,0.0002091,2]
[328096055,1716851440094,-373.384991,0.0002091,2]
[328096056,1716851440103,-373.384991,0.0002091,2]
[328096057,1716851440112,-373.384991,0.0002091,2]
[328096058,1716851440122,-373.384991,0.0002091,2]
[328096059,1716851440131,-373.384991,0.0002091,2]
[328096060,1716851440140,-373.384991,0.0002091,2]
[328096061,1716851440150,-373.384991,0.0002091,2]
[328096062,1716851440159,-373.384991,0.0002091,2]
[328096063,1716851440168,-373.384991,0.0002091,2]
[328096064,1716851440178,-373.384991,0.0002091,2]
[328096065,1716851440187,-373.384991,0.0002091,2]
[328096066,1716851440196,-373.384991,0.0002091,2]
[328096067,1716851440205,-373.384991,0.0002091,2]
[328096068,1716851440214,-373.384991,0.0002091,2]
[328096069,1716851440223,-373.384991,0.0002091,2]
[328096070,1716851440233,-151.0,0.0002091,2]
[328096071,1716851440243,-233.635612,0.0002091,2]
[328096072,1716851440252,-151.0,0.0002091,2]
[328096073,1716851440262,-151.0,0.0002091,2]
[328096074,1716851440272,-204.681774,0.0002091,2]
[328096075,1716851440281,-204.681774,0.0002091,2]
[328096076,1716851440291,-204.681774,0.0002091,2]
[328096077,1716851440300,-204.681774,0.0002091,2]
[328096078,1716851440310,-204.681774,0.0002091,2]
[328096079,1716851440319,-204.681774,0.0002091,2]
[328096080,1716851440328,-204.681774,0.0002091,2]
[328096081,1716851440338,-204.681774,0.0002091,2]
[328096082,1716851440347,-204.681774,0.0002091,2]
[328096083,1716851440357,-204.681774,0.0002091,2]
[328096084,1716851440367,-151.0,0.0002091,2]
[328096085,1716851440376,-151.0,0.0002091,2]
[328096086,1716851440385,-204.681774,0.0002091,2]
[328096087,1716851440394,-151.0,0.0002091,2]
[328096088,1716851440404,-151.0,0.0002091,2]
[328096089,1716851440413,-204.681774,0.0002091,2]
[328096090,1716851440422,-151.0,0.0002091,2]
[328096091,1716851440432,-151.0,0.0002091,2]
[328096092,1716851440441,-204.681774,0.0002091,2]
[328096093,1716851440455,-151.0,0.0002091,2]
[328096094,1716851440465,-151.0,0.0002091,2]
[328096095,1716851440475,-204.681774,0.0002091,2]
[328096096,1716851440485,-151.0,0.0002091,2]
[328096097,1716851440495,-151.0,0.0002091,2]
[328096098,1716851440504,-204.681774,0.0002091,2]
[328096099,1716851440514,-151.0,0.0002091,2]
[328096100,1716851440524,-151.0,0.0002091,2]
[328096101,1716851440534,-204.681774,0.0002091,2]
[328096102,1716851440544,-151.0,0.0002091,2]
[328096103,1716851440553,-151.0,0.0002091,2]
[328096104,1716851440562,-204.681774,0.0002091,2]
[328096105,1716851440572,-151.0,0.0002091,2]
[328096106,1716851440581,-151.0,0.0002091,2]
[328096107,1716851440590,-204.681774,0.0002091,2]
[328096108,1716851440599,-151.0,0.0002091,2]
[328096109,1716851440609,-151.0,0.0002091,2]
[328096110,1716851440619,-204.681774,0.0002091,2]
[328096111,1716851440628,-204.681769,0.0002091,2]
[328096112,1716851440638,-151.0,0.0002091,2]
[328096113,1716851440648,-151.0,0.0002091,2]
[328096114,1716851440657,-151.0,0.0002091,2]
[328096115,1716851440667,-151.0,0.0002091,2]
[328096116,1716851440676,-151.0,0.0002091,2]
[328096117,1716851440686,-151.0,0.0002091,2]
[328096118,1716851440695,-151.0,0.0002091,2]
[328096119,1716851440705,-176.435332,0.0002091,2]
[328096120,1716851440714,-215.289862,0.0002091,2]
[328096121,1716851440723,-151.0,0.0002091,2]
[328096122,1716851440733,-1018.072048,0.0002091,2]
[328096123,1716851440743,-1018.072048,0.0002091,2]
[328096124,1716851440752,-1018.072048,0.0002091,2]
[328096125,1716851440761,-1018.072048,0.0002091,2]
[328096126,1716851440771,-1018.072048,0.0002091,2]
[328096127,1716851440780,-1018.072048,0.0002091,2]
[328096128,1716851440789,-1018.072048,0.0002091,2]
[328096129,1716851440798,-1018.072048,0.0002091,2]
[328096130,1716851440807,-1018.072048,0.0002091,2]
[328096131,1716851440816,-1018.072048,0.0002091,2]
[328096132,1716851440825,-1018.072048,0.0002091,2]
[328096133,1716851440834,-1018.072048,0.0002091,2]
[328096134,1716851440843,-1018.072048,0.0002091,2]
[328096135,1716851440852,-1018.072048,0.0002091,2]
[328096136,1716851440862,-1018.072048,0.0002091,2]
[328096137,1716851440871,-1018.072048,0.0002091,2]
[328096138,1716851440881,-1018.072048,0.0002091,2]
[328096139,1716851440891,-1018.072048,0.0002091,2]
[328096140,1716851440900,-1018.072048,0.0002091,2]
[328096141,1716851440910,-1018.072049,0.0002091,2]
[328096142,1716851440919,-151.0,0.0002091,2]
[328096143,1716851440929,-151.0,0.0002091,2]
[328096144,1716851440938,-151.0,0.0002091,2]
[328096145,1716851440947,-151.0,0.0002091,2]
[328096146,1716851440957,-151.0,0.0002091,2]
[328096147,1716851440966,-151.0,0.0002091,2]
[328096149,1716851440975,-151.0,0.0002091,2]
[328096151,1716851440985,-151.0,0.0002091,2]
[328096152,1716851440994,-151.0,0.0002091,2]
[328096153,1716851441003,-151.0,0.0002091,2]
[328096154,1716851441012,-263.385161,0.0002091,2]
[328096155,1716851441022,-482.19367,0.0002091,2]
[328096156,1716851441031,-482.19367,0.0002091,2]
[328096157,1716851441040,-482.19367,0.0002091,2]
[328096158,1716851441050,-482.19367,0.0002091,2]
[328096159,1716851441059,-482.19367,0.0002091,2]
[328096160,1716851441068,-482.19367,0.0002091,2]
[328096161,1716851441077,-482.19367,0.0002091,2]
[328096162,1716851441087,-482.19367,0.0002091,2]
[328096163,1716851441096,-482.19367,0.0002091,2]
[328096164,1716851441105,-482.193667,0.0002091,2]
[328096166,1716851441115,-439.53439793,0.00020911,2]
[328096168,1716851441125,-161.05882846,0.00020911,2]
[328096170,1716851441134,-1041.55077755,0.00020911,2]
[328096172,1716851441144,-155.34816039,0.00020911,2]
[328096174,1716851441153,-223.43080704,0.00020911,2]
[328096176,1716851441162,-156.5200847,0.00020911,2]
[328096178,1716851441171,-190.01119461,0.00020911,2]
[328096180,1716851441181,-260.86363855,0.00020911,2]
[328096182,1716851441190,-274.85373023,0.00020911,2]
[328096184,1716851441199,-2627.97975915,0.00020911,2]
[328096186,1716851441208,-154.95351395,0.00020911,2]
[328096188,1716851441218,-1590.34056931,0.00020911,2]
[328096190,1716851441227,-182.69546518,0.00020911,2]
[328096192,1716851441237,-151.0,0.00020911,2]
[328096194,1716851441246,-151.0,0.00020911,2]
[328096196,1716851441255,-151.0,0.00020911,2]
[328096198,1716851441265,-151.0,0.00020911,2]
[328096200,1716851441274,-156.199736,0.00020911,2]
[328096201,1716851441283,-156.199736,0.00020911,2]
[328096202,1716851441292,-156.199736,0.00020911,2]
[328096203,1716851441301,-156.199736,0.00020911,2]
[328096205,1716851441311,-156.199736,0.00020911,2]
[328096207,1716851441320,-156.199736,0.00020911,2]
[328096208,1716851441330,-156.199736,0.00020911,2]
[328096209,1716851441339,-156.199736,0.00020911,2]
[328096210,1716851441348,-156.199736,0.00020911,2]
[328096211,1716851441358,-156.199736,0.00020911,2]
[328096212,1716851441367,-156.199736,0.00020911,2]
[328096213,1716851441376,-156.199736,0.00020911,2]
[328096214,1716851441386,-156.199736,0.00020911,2]
[328096215,1716851441395,-156.199736,0.00020911,2]
[328096216,1716851441405,-156.199736,0.00020911,2]
[328096217,1716851441414,-156.199736,0.00020911,2]
[328096218,1716851441424,-156.199736,0.00020911,2]
[328096219,1716851441433,-156.199736,0.00020911,2]
[328096220,1716851441442,-156.199736,0.00020911,2]
[328096221,1716851441456,-156.199726,0.00020911,2]
[328096222,1716851441465,-151.0,0.00020911,2]
[328096223,1716851441474,-151.0,0.00020911,2]
[328096224,1716851441484,-151.0,0.00020911,2]
[328096225,1716851441495,-151.0,0.00020911,2]
[328096226,1716851441504,-151.0,0.00020911,2]
[328096227,1716851441513,-151.0,0.00020911,2]
[328096228,1716851441523,-151.0,0.00020911,2]
[328096229,1716851441534,-151.0,0.00020911,2]
[328096230,1716851441544,-197.729839,0.00020911,2]
[328096231,1716851441553,-151.0,0.00020911,2]
[328096232,1716851441562,-263.70942,0.00020911,2]
[328096233,1716851441571,-151.0,0.00020911,2]
[328096234,1716851441580,-151.0,0.00020911,2]
[328096235,1716851441590,-151.0,0.00020911,2]
[328096236,1716851441599,-151.0,0.00020911,2]
[328096237,1716851441609,-223.901305,0.00020911,2]
[328096238,1716851441618,-151.0,0.00020911,2]
[328096239,1716851441628,-151.0,0.00020911,2]
[328096240,1716851441639,-151.0,0.00020911,2]
[328096241,1716851441649,-151.0,0.00020911,2]
[328096242,1716851441658,-151.0,0.00020911,2]
[328096243,1716851441668,-151.0,0.00020911,2]
[328096244,1716851441677,-151.0,0.00020911,2]
[328096245,1716851441687,-151.0,0.00020911,2]
[328096246,1716851441696,-151.0,0.00020911,2]
[328096247,1716851441706,-218.829174,0.00020911,2]
[328096248,1716851441716,-151.0,0.00020911,2]
[328096249,1716851441726,-151.0,0.00020911,2]
[328096250,1716851441736,-151.0,0.00020911,2]
[328096251,1716851441745,-151.0,0.00020911,2]
[328096252,1716851441755,-151.0,0.00020911,2]
[328096253,1716851441764,-151.0,0.00020911,2]
[328096254,1716851441773,-296.963592,0.00020911,2]
[328096255,1716851441783,-968.773292,0.00020911,2]
[328096256,1716851441792,-968.773288,0.00020911,2]
[328096257,1716851441801,-373.384991,0.00020911,2]
[328096258,1716851441811,-373.384991,0.00020911,2]
[328096259,1716851441820,-151.0,0.00020911,2]
[328096260,1716851441829,-155.31351437,0.00020912,2]
[328096261,1716851441838,-1358.08324488,0.00020912,2]
[328096262,1716851441848,-162.49515588,0.00020912,2]
[328096263,1716851441857,-2988.47227797,0.00020912,2]
[328096264,1716851441866,-174.56195583,0.00020912,2]
[328096265,1716851441875,-5061.62249294,0.00020912,2]
[328096453,1716851443788,-1719.33128423,0.00020912,2]
[328096455,1716851443798,-156.37707057,0.00020912,2]
[328098638,1716851497396,917.08791391,9.999e-05,2]
[328098639,1716851552461,224.93928124,0.00015,2]
[328098640,1716851570283,224.98916608,9.999e-05,2]
[328098641,1716851585939,155.36790834,9.999e-05,2]
[328098653,1716852309091,252.840187,9.999e-05,2]
[328098654,1716852350106,-150.0,0.000189,2]
[328098655,1716852350126,-173.994812,0.00019455,2]
[328098656,1716852350147,-59.71742902,0.00019806,2]
[328098659,1716852425099,-477.77946824,0.00019806,2]
[328098660,1716852427244,-1697.55655652,0.00019806,2]
[328098761,1716852551222,-150.0,0.000189,2]
[328098762,1716852551244,-11118.7529493,0.00019742,2]
[328098763,1716852551265,-453.64696581,0.00019806,2]
[328098769,1716852596243,156.8699674,0.0002,2]
[328098834,1716852632867,-774.65,0.00020706,2]
[328098838,1716852632879,-3174.45680044,0.00020706,2]
[328098841,1716852632891,-279.35897179,0.00020706,2]
[328098844,1716852632904,-282.0,0.000209,2]
[328098847,1716852632914,-616.65499208,0.00020911,2]
[328098850,1716852632924,-249.14116285,0.00020911,2]
[328098853,1716852632934,-154.93801241,0.00020911,2]
[328098856,1716852632943,-156.8699674,0.00020911,2]
[328098859,1716852632953,-394.32917332,0.00020912,2]
[328098862,1716852632962,-7.96436369,0.00020912,2]
[328098864,1716852632972,-154.95351395,0.00020912,2]
[328098866,1716852632981,-278.04920789,0.00020912,2]
[328098868,1716852632993,-213.29936282,0.00020912,2]
[328098870,1716852633002,-3709.85560036,0.00020912,2]
[328098872,1716852633011,-439.14733394,0.00020912,2]
[328098977,1716852638899,-4140.37273531,0.00020613,2]
[328098979,1716852638912,-457.90355789,0.00020912,2]
[328099033,1716852644289,-537.35862518,0.00020912,2]
[328099034,1716852644299,-329.60549377,0.00020912,2]
[328099035,1716852644308,-637.57477424,0.00020912,2]
[328099036,1716852644317,-279.22090606,0.00020912,2]
[328099037,1716852644326,-176.50756895,0.00020912,2]
[328099038,1716852644335,-301.8575532,0.00020912,2]
[328099039,1716852644344,-489.20049962,0.00020912,2]
[328099040,1716852644354,-155.11768199,0.00020912,2]
[328099041,1716852644365,-3216.95249777,0.00020912,2]
[328099042,1716852644374,-25704.51625591,0.00020913,2]
[328099043,1716852644383,-659.26582278,0.00021046,2]
[328099045,1716852644393,-151.0,0.00021242,3]
[328099047,1716852644406,-172.55506351,0.00021368,2]
[328099049,1716852644416,-151.0,0.00021468,2]
[328099051,1716852644425,-153.0,0.00021644,2]
[328099053,1716852644434,-153.0,0.00021644,2]
[328099055,1716852644443,-153.0,0.00021781,2]
[328099057,1716852644452,-157.6991626,0.00021781,2]
[328099059,1716852644461,-153.0,0.00021781,2]
[328099061,1716852644471,-240.81,0.0002179,3]
[328099064,1716852644481,-722.47,0.0002179,3]
[328099066,1716852644490,-433.43233975,0.00021799,2]
[328099068,1716852644501,-500.0,0.00021799,2]
[328099070,1716852644510,-500.0,0.00021799,2]
[328099072,1716852644519,-457.31667632,0.00021799,2]
[328099074,1716852644528,-280.20705914,0.00021799,2]
[328099076,1716852644538,-500.0,0.00021799,2]
[328099078,1716852644548,-500.0,0.00021799,2]
[328099080,1716852644558,-500.0,0.00021799,2]
[328099082,1716852644568,-500.0,0.00021799,2]
[328099084,1716852644577,-500.0,0.00021799,2]
[328099086,1716852644587,-500.0,0.00021799,2]
[328099088,1716852644596,-500.0,0.00021799,2]
[328099090,1716852644605,-421.73159494,0.00021799,2]
[328099092,1716852644615,-500.0,0.00021799,2]
[328099094,1716852644626,-500.0,0.00021799,2]
[328099096,1716852644636,-500.0,0.00021799,2]
[328099098,1716852644645,-500.0,0.00021799,2]
[328099101,1716852644654,-500.0,0.00021799,2]
[328099103,1716852644665,-500.0,0.00021799,2]
[328099105,1716852644674,-500.0,0.00021799,2]
[328099107,1716852644683,-500.0,0.00021799,2]
[328099109,1716852644692,-500.0,0.00021799,2]
[328099111,1716852644702,-500.0,0.00021799,2]
[328099113,1716852644711,-500.0,0.00021799,2]
[328099115,1716852644720,-500.0,0.00021799,2]
[328099117,1716852644729,-500.0,0.00021799,2]
[328099119,1716852644739,-4279.54660812,0.000218,2]
[328099121,1716852644749,-151.0,0.00021918,2]
[328099122,1716852644759,-166.666666,0.00021918,2]
[328099124,1716852644769,-151.0,0.00021976,3]
[328099126,1716852644778,-309.73672456,0.00022,2]
[328099128,1716852644788,-263.1,0.00022066,3]
[328099130,1716852644797,-156.58808866,0.00022498,2]
[328099133,1716852644808,-19366.69088784,0.000225,2]
[328099345,1716852646867,-1634.99,0.000225,2]
[328099758,1716853558121,-156.8699674,0.00020399,2]
[328099759,1716853558145,-150.0,0.000204,2]
[328099760,1716853558168,-172.55026604,0.00020912,2]
[328099761,1716853629159,-133.82407951,0.00020912,2]
[328099763,1716853629182,-1727.69547641,0.00020912,7]
[328099765,1716853631116,-635.4956138,0.00020912,7]
[328099766,1716853766098,-150.0,0.000189,2]
[328099767,1716853766118,-4050.26380256,0.0002,5]
[328099768,1716853766137,-156.8699674,0.0002,2]
[328099889,1716853838116,-258.75359852,0.00020912,7]
[328099915,1716853846204,-3195.04283105,0.00020912,7]
[328099916,1716854754153,-150.0,0.000189,2]
[328099917,1716854754174,-715.04393227,0.00019862,2]
[328099918,1716854850105,-281.16661543,0.00019862,2]
[328099919,1716854850128,-223.453963,0.00020255,2]
[328099920,1716854850149,-204.89310413,0.00020816,2]
[328099923,1716854971146,-270.0,0.0002,2]
[328100051,1716855105153,223.4539645,0.00020007,2]
[328100052,1716855952152,-190.14627615,0.00018899,2]
[328100053,1716855952172,-150.0,0.000189,2]
[328100054,1716855952194,-262.83078253,0.0002,2]
[328100055,1716856026111,-173.994812,0.00019329,2]
[328100056,1716856026133,-38.16921747,0.0002,2]
[328100057,1716856026155,-156.8699674,0.00020047,2]
[328100058,1716856026176,-210.98273697,0.00020048,2]
[328100059,1716856028147,-52.01726303,0.00020048,2]
[328100060,1716856028167,-316.0,0.00020048,2]
[328100061,1716856028188,-1122.40778158,0.00020526,2]
[328100067,1716856172905,3892.8956017,0.00020078,2]
[328100069,1716856196105,18861.82134611,0.00019943,2]
[328100160,1716856242299,-342.80499812,0.00019943,2]
[328100175,1716856243366,-404.5710062,0.00019943,2]
[328100178,1716856243474,-3781.09641882,0.00019943,2]
[328100179,1716856243488,-1509.70623075,0.00019943,2]
[328100180,1716856243498,-3892.8956017,0.00020287,2]
[328100181,1716856243508,-233.55195375,0.00020912,7]
[328100182,1716856243518,-270.88175029,0.00020912,2]
[328100183,1716856243527,-190.14627615,0.00020912,2]
[328100184,1716856243537,-220.72250089,0.00020912,2]
[328100185,1716856243547,-5000.0,0.00020913,2]
[328100186,1716856243556,-3892.8956017,0.00021033,2]
[328100187,1716856243566,-3892.8956018,0.00021241,2]
[328100188,1716856243576,-151.0,0.00021298,3]
[328100189,1716856243585,-308.7194064,0.00021452,2]
[328100190,1716856243595,-166.666666,0.00021918,2]
[328100191,1716856243606,-310.7,0.00022199,3]
[328100192,1716856243616,-224.73843168,0.000225,2]
[328100193,1716856243625,-282.0,0.000225,2]
[328100194,1716856243635,-14342.30759663,0.000225,2]
[328100214,1716856246324,-7866.65991758,0.000225,2]
[328100215,1716856246334,-622.99614157,0.00022637,2]
[328100216,1716856246345,-153.0,0.00022737,2]
[328100217,1716856246359,-153.0,0.00022737,2]
[328100218,1716856246368,-153.0,0.00022737,2]
[328100219,1716856246379,-153.0,0.00022737,2]
[328100220,1716856246388,-310.7,0.00022846,3]
[328100221,1716856246400,-172.55506351,0.000229,2]
[328100222,1716856246409,-4697.73031858,0.00023,2]
[328100223,1716856246418,-8055.705682,0.00023,2]
[328100224,1716856246427,-310.7,0.00023493,5]
[328100225,1716856246437,-172.55506351,0.0002373,2]
[328100226,1716856246446,-481.62,0.0002381,3]
[328100227,1716856246455,-500.0,0.00023819,2]
[328100228,1716856246465,-195.99286128,0.00023819,2]
[328100229,1716856246473,-500.0,0.00023819,2]
[328100230,1716856246483,-500.0,0.00023819,2]